fUST/lending_fUST_20260203
["ID","MTS","AMOUNT","RATE_DAILY","PERIOD"]
[404400988,1770107439262,-26061.3361394,0.000249,2]
[404400990,1770107439272,-516.783952,0.0002518,2]
[404400991,1770107439281,-206.275124,0.00025198,2]
[404400993,1770107439291,-300.89597538,0.00025205,2]
[404400995,1770107439300,-1000.0,0.000255,2]
[404400997,1770107439309,-261.03422862,0.00025642,2]
[404400998,1770107439319,-300.0,0.00026116,2]
[404401000,1770107439328,-516.783952,0.00026157,2]
[404401002,1770107439338,-834.63092689,0.00026638,2]
[404401003,1770107439348,-1000.0,0.00026804,30]
[404401005,1770107439357,-492.0,0.00026804,30]
[404401007,1770107439367,-1613.0,0.00027089,2]
[404401009,1770107439376,-516.783952,0.00027135,2]
[404401010,1770107439386,-334.99672687,0.00027397,2]
[404401012,1770107439395,-288.35176417,0.00027642,2]
[404401014,1770107439405,-1050.45425778,0.00028036,5]
[404401016,1770107439414,-841.49394354,0.00028038,5]
[404401017,1770107439424,-516.783952,0.00028112,2]
[404401018,1770107439433,-834.63092689,0.00028725,2]
[404401020,1770107439442,-407.403,0.000288,20]
[404401022,1770107439451,-179.12345904,0.000288,20]
[404401023,1770107439461,-1994.787736,0.00029,10]
[404401025,1770107439470,-1000.0,0.00029485,30]
[404401027,1770107439481,-791.0,0.00029485,30]
[404401028,1770107439490,-170.7894289,0.00029538,2]
[404401030,1770107439500,-2258.0,0.00029573,2]
[404401031,1770107439510,-315.66929972,0.00029642,2]
[404401033,1770107439519,-13030.6680697,0.00030126,2]
[404401034,1770107439528,-512.01,0.00030137,2]
[404401036,1770107439537,-1294.49,0.00030144,120]
[404401038,1770107439546,-1294.49,0.00030145,120]
[404401039,1770107439555,-27139.23954064,0.00030146,120]
[404401041,1770107439565,-151.0,0.000304,14]
[404401043,1770107439574,-785.0,0.000304,2]
[404401045,1770107439584,-834.63092689,0.00030813,2]
[404401047,1770107439593,-1041.66666667,0.00031,120]
[404401048,1770107439602,-335.0,0.00031191,7]
[404401050,1770107439611,-363.38741284,0.00031191,7]
[404401051,1770107439621,-342.98683528,0.00031642,2]
[404401053,1770107439630,-151.0,0.000317,16]
[404401055,1770107439639,-740.91124423,0.00031823,2]
[404401057,1770107439649,-1041.66666667,0.00031827,2]
[404401059,1770107439658,-186.523192,0.00032205,30]
[404401061,1770107439667,-254.0,0.00032285,2]
[404401062,1770107439676,-1000.0,0.00032433,30]
[404401064,1770107439686,-1000.0,0.00032433,30]
[404401066,1770107439696,-186.523192,0.00032695,60]
[404401067,1770107439705,-151.0,0.00032877,31]
[404401069,1770107439715,-151.0,0.00032877,31]
[404401071,1770107439724,-151.0,0.00032877,31]
[404401073,1770107439734,-834.63092689,0.000329,2]
[404401075,1770107439744,-1294.49,0.00032978,120]
[404401077,1770107439754,-1294.49,0.00032988,120]
[404401078,1770107439763,-13030.6680697,0.00032989,2]
[404401080,1770107439772,-183.703,0.00032999,2]
[404401082,1770107439783,-1294.49,0.00032999,120]
[404401084,1770107439792,-1294.49,0.00032999,120]
[404401085,1770107439801,-1294.49,0.00032999,120]
[404401087,1770107439810,-1294.49,0.00032999,120]
[404401088,1770107439820,-1294.49,0.00032999,120]
[404401090,1770107439829,-1294.49,0.00032999,120]
[404401092,1770107439838,-1294.49,0.00032999,120]
[404401093,1770107439848,-1294.49,0.00032999,120]
[404401095,1770107439857,-1294.49,0.00032999,120]
[404401097,1770107439872,-1294.49,0.00032999,120]
[404401099,1770107439881,-1294.49,0.00032999,120]
[404401100,1770107439890,-1294.49736663,0.00032999,120]
[404401102,1770107439899,-441715.01791396,0.00033,120]
[404401104,1770107439913,-795.74313342,0.00033,120]
[404401106,1770107439925,-74113.9272989,0.00033,120]
[404401717,1770107447349,-5000.0,0.00017121,2]
[404401718,1770107447358,-8914.90734601,0.00033,120]
[404401721,1770107451882,10000.01,0.00015999,2]
[404401722,1770107451909,10000.01,0.00015999,2]
[404401723,1770107451934,10000.01,0.00015999,2]
[404401724,1770107451960,10000.01,0.00015999,2]
[404401725,1770107451983,1658.28919725,0.00015999,2]
[404401726,1770107466360,500.0,0.00013699,2]
[404401727,1770107466412,1000.0,0.00014247,2]
[404401728,1770107466581,500.0,0.00013699,2]
[404401729,1770107466618,1131.08756037,0.00014247,2]
[404401730,1770107466733,500.0,0.00013699,2]
[404401731,1770107466779,1000.0,0.00014247,2]
[404401732,1770107466821,1500.0,0.00014795,2]
[404401733,1770107466875,2000.0,0.00015342,2]
[404401734,1770107468027,500.0,0.00013273,2]
[404401735,1770107468088,175.84126355,0.00013821,2]
[404401740,1770107469726,158.75349077,0.00013699,2]
[404401741,1770107470636,500.0,0.00013699,2]
[404401742,1770107470693,534.32768531,0.00014247,2]
[404401743,1770107470720,465.67231469,0.00014247,2]
[404401744,1770107472407,500.51440333,0.00013699,2]
[404401745,1770107475150,500.0,0.00013273,2]
[404401746,1770107475221,1000.0,0.00013821,2]
[404401747,1770107476077,500.0,0.00013699,2]
[404401748,1770107476113,1000.0,0.00014247,2]
[404401749,1770107476645,500.0,0.00013699,2]
[404401750,1770107476697,1000.0,0.00014247,2]
[404401751,1770107476757,1500.0,0.00014795,2]
[404401752,1770107476810,459.22058997,0.00015342,2]
[404401753,1770107477238,500.0,0.00013699,2]
[404401754,1770107477305,538.71956343,0.00014247,2]
[404401755,1770107477745,500.0,0.00013273,2]
[404401756,1770107478024,501.32902716,0.00013699,2]
[404401757,1770107478503,500.0,0.00013699,2]
[404401758,1770107478548,500.22641611,0.00014247,2]
[404401759,1770107478573,0.46045285,0.00014247,2]
[404401760,1770107479020,500.0,0.00013273,2]
[404401761,1770107479066,1000.0,0.00013821,2]
[404401762,1770107479762,300.0,0.00013673,2]
[404401763,1770107479816,600.0,0.00014221,2]
[404401764,1770107479873,300.0,0.00014768,2]
[404401792,1770107523872,500.0,0.00013699,2]
[404401793,1770107524034,820.12567473,0.00014247,2]
[404401794,1770107527092,500.0,0.00013273,2]
[404401796,1770107529802,500.0,0.00013273,2]
[404401797,1770107529842,500.0,0.00013273,2]
[404401798,1770107529895,1000.0,0.00013821,2]
[404401799,1770107530245,500.0,0.00013699,2]
[404401800,1770107530281,500.0,0.00014247,2]
[404401801,1770107530453,500.0,0.00013273,2]
[404401802,1770107530828,500.0,0.00013273,2]
[404401803,1770107530857,543.83551273,0.00013699,2]
[404401804,1770107530888,935.58835969,0.00013821,2]
[404401805,1770107530913,64.41164031,0.00013821,2]
[404401806,1770107530943,1000.0,0.00014368,2]
[404401807,1770107532998,500.0,0.00013699,2]
[404401808,1770107533530,500.0,0.00013699,2]
[404401809,1770107533590,158.68078088,0.00014247,2]
[404401810,1770107533781,503.70808855,0.00013273,2]
[404401811,1770107535151,500.0,0.00013699,2]
[404401812,1770107536020,500.31997124,0.00013273,2]
[404401813,1770107536691,500.0,0.00013273,2]
[404401814,1770107537394,239.94552144,0.00013273,2]
[404401820,1770107643211,500.0,0.00013273,2]
[404401821,1770107643243,335.58491365,0.00014916,2]
[404401822,1770107643274,1000.0,0.00013821,2]
[404401823,1770107643325,1500.0,0.00014368,2]
[404401824,1770107646091,500.0,0.00013699,2]
[404401825,1770107646129,1000.0,0.00014247,2]
[404401826,1770107646184,443.51307087,0.00014795,2]
[404401827,1770107646294,158.55644016,0.00013699,2]
[404401828,1770107646325,95.2895729,0.00013699,2]
[404401829,1770107646350,404.7104271,0.00013699,2]
[404401830,1770107646380,402.67526704,0.00014247,2]
[404401831,1770107646485,505.64868738,0.00013699,2]
[404401832,1770107646536,500.15937086,0.00013699,2]
[404401833,1770107646566,500.0,0.00013699,2]
[404401834,1770107648632,5000.0,0.0001589,2]
[404401835,1770107656766,419.73288283,0.0001589,2]
[404401841,1770107672032,2267.08336479,0.0001589,2]
[404401842,1770107672056,2732.91663521,0.0001589,2]
[404401848,1770107705930,-5000.0,0.00015732,2]
[404401849,1770107707755,0.01,0.00013273,2]
[404401850,1770107707781,499.99,0.00013273,2]
[404401851,1770107707812,1000.0,0.00013821,2]
[404401852,1770107707857,1500.0,0.00014368,2]
[404401853,1770107707900,514.1403875,0.00014916,2]
[404401855,1770107718689,5000.0,0.00015732,2]
[404401856,1770107741241,5000.0,0.0001589,2]
[404401858,1770107763417,500.0,0.00013699,2]
[404401859,1770107763473,671.30504098,0.00014247,2]
[404401860,1770107763506,500.0,0.00013273,2]
[404401861,1770107763566,1000.0,0.00013821,2]
[404401862,1770107763634,1500.0,0.00014368,2]
[404401863,1770107763675,828.70495902,0.00014916,2]
[404401864,1770107763707,673.1434512,0.00014916,2]
[404401865,1770107764645,5000.0,0.0001589,2]
[404401893,1770107787110,4326.8665488,0.0001589,2]
[404401894,1770107787137,673.1334512,0.0001589,2]
[404401919,1770107818707,-5000.0,0.00015732,2]
[404401921,1770107823640,0.01,0.00013699,2]
[404401922,1770107823662,499.99,0.00013699,2]
[404401923,1770107823687,500.0,0.00013699,2]
[404401924,1770107823713,500.0,0.00013273,2]
[404401929,1770107826501,500.0,0.00013699,2]
[404401930,1770107826567,1000.0,0.00014247,2]
[404401931,1770107826634,500.0,0.00013273,2]
[404401932,1770107826690,500.0,0.00013699,2]
[404401933,1770107826719,500.45251857,0.00013821,2]
[404401934,1770107830045,500.0,0.00013699,2]
[404401935,1770107830093,1000.0,0.00014247,2]
[404401936,1770107830152,1115.53409542,0.00014795,2]
[404401944,1770107944175,250.36172066,0.00013699,2]
[404402080,1770108003966,500.0,0.00013699,2]
[404402082,1770108006986,-500.08107402,0.00014247,2]
[404402083,1770108008688,-499.91892598,0.00014247,2]
[404402084,1770108008711,-0.08107402,0.00014795,2]
[404402085,1770108013319,-500.0075863,0.00014795,2]
[404402087,1770108015401,-500.0,0.00014795,2]
[404402088,1770108017140,-302.58027936,0.00014795,2]
[404402089,1770108028085,919.23640986,0.00014795,2]
[404402090,1770108036068,-200.77143484,0.00014795,2]
[404402093,1770108064037,160.39462294,0.00013699,2]
[404402094,1770108064063,500.0,0.00013273,2]
[404402095,1770108064091,500.0,0.00013699,2]
[404402096,1770108064123,571.27962246,0.00014247,2]
[404402097,1770108064149,1000.0,0.00013821,2]
[404402098,1770108064179,686.01054941,0.00014247,2]
[404402099,1770108064204,505.5503841,0.00013699,2]
[404402100,1770108064231,443.79931484,0.00014368,2]
[404402101,1770108064256,500.0,0.00013699,2]
[404402102,1770108064281,500.0,0.00013273,2]
[404402103,1770108064306,1148.20692363,0.00013821,2]
[404402104,1770108086047,588.0,0.00030137,120]
[404402165,1770108303322,500.0,0.00013699,2]
[404402166,1770108303376,348.51110734,0.00014247,2]
[404402169,1770108361708,-791.54473922,0.00015037,2]
[404402170,1770108366655,302.58027936,0.00013273,2]
[404402172,1770108378040,-150.0,0.0001519,2]
[404402216,1770108603668,3428.78379667,0.00015,2]
[404402271,1770108638558,-500.03,0.00015342,2]
[404402272,1770108638567,-150.0,0.00016266,2]
[404402273,1770108638576,-177.0,0.00018266,2]
[404402274,1770108638585,-204.0,0.00020266,2]
[404402275,1770108638594,-1326.6643366,0.00021882,2]
[404402276,1770108638603,-1000.0,0.00021999,30]
[404402277,1770108638612,-231.0,0.00022266,2]
[404402278,1770108638622,-300.0,0.00022999,2]
[404402279,1770108638631,-1200.0,0.00022999,2]
[404402280,1770108638640,-10000.0,0.00023,2]
[404402281,1770108638650,-150.51837634,0.00023,2]
[404402282,1770108638659,-3581.43791957,0.00023357,2]
[404402283,1770108638668,-595.26046708,0.00023456,2]
[404402284,1770108638677,-500.0,0.00023456,2]
[404402285,1770108638687,-500.0,0.00023456,2]
[404402286,1770108638696,-500.0,0.00023456,2]
[404402287,1770108638705,-500.0,0.00023456,2]
[404402288,1770108638715,-500.0,0.00023456,2]
[404402289,1770108638724,-500.0,0.00023456,2]
[404402290,1770108638733,-306.54485125,0.00023456,2]
[404402291,1770108638742,-500.0,0.00023456,2]
[404402292,1770108638752,-178.79683357,0.00023456,2]
[404402293,1770108638761,-500.0,0.00023456,2]
[404402294,1770108638771,-500.0,0.00023456,2]
[404402295,1770108638780,-500.0,0.00023456,2]
[404402296,1770108638790,-500.0,0.00023456,2]
[404402297,1770108638800,-500.0,0.00023456,2]
[404402298,1770108638809,-275.43957388,0.00023456,2]
[404402299,1770108638820,-224.56042612,0.00023456,2]
[404402300,1770108638830,-212.6648134,0.00023456,2]
[404402301,1770108638839,-500.0,0.00023456,2]
[404402302,1770108638848,-500.0,0.00023456,2]
[404402303,1770108638857,-500.0,0.00023456,2]
[404402304,1770108638867,-500.0,0.00023456,2]
[404402305,1770108638878,-500.0,0.00023456,2]
[404402310,1770108638973,-300.0,0.00023459,10]
[404402311,1770108638986,-300.0,0.00023459,10]
[404402312,1770108638995,-300.0,0.00023459,10]
[404402313,1770108639007,-300.0,0.00023459,10]
[404402314,1770108639016,-300.0,0.00023459,10]
[404402315,1770108639026,-300.0,0.00023459,10]
[404402316,1770108639036,-300.0,0.00023459,10]
[404402317,1770108639045,-300.0,0.00023459,10]
[404402318,1770108639058,-300.0,0.00023459,10]
[404402319,1770108639067,-300.0,0.00023459,10]
[404402320,1770108639076,-57.79222738,0.00023459,10]
[404402321,1770108639088,-242.20777262,0.00023459,10]
[404402322,1770108639097,-300.0,0.00023459,10]
[404402323,1770108639106,-300.0,0.00023459,10]
[404402324,1770108639116,-300.0,0.00023459,10]
[404402325,1770108639125,-300.0,0.00023459,10]
[404402326,1770108639134,-600.0,0.00023927,10]
[404402327,1770108639144,-258.0,0.00024266,2]
[404402328,1770108639153,-313.96804729,0.00024967,2]
[404402329,1770108639164,-106.03195271,0.00024967,2]
[404402330,1770108639173,-168.70208645,0.00024999,2]
[404402331,1770108639182,-42.35652368,0.00025,2]
[404402496,1770108640864,-1840.03539928,0.00023,2]
[404403000,1770108645877,-4516.21381212,0.00023,2]
[404403002,1770108645886,-3580.24888813,0.00025,2]
[404403004,1770108645897,-333.4946944,0.00025,2]
[404403009,1770108645931,-668.38599259,0.00025,2]
[404403010,1770108645941,-455.08862534,0.00025,2]
[404403011,1770108645951,-315.0,0.00025,2]
[404403050,1770108646787,-30446.42527586,0.00025,2]
[404403051,1770108646796,-285.0,0.00026266,2]
[404403053,1770108646806,-720.0,0.0002632,30]
[404403054,1770108646815,-325.922,0.000268,14]
[404403055,1770108646824,-180.0,0.00027103,2]
[404403057,1770108646833,-234.4977088,0.00027397,2]
[404403059,1770108646844,-312.0,0.00028266,2]
[404403061,1770108646853,-864.0,0.00028952,30]
[404403062,1770108646862,-339.0,0.00030266,2]
[404403064,1770108646871,-1041.66666667,0.00031693,2]
[404403066,1770108646880,-740.91124423,0.00031693,2]
[404403068,1770108646890,-1000.0,0.00031847,30]
[404403070,1770108646899,-366.0,0.00032266,2]
[404403072,1770108646908,-2000.0,0.00032978,120]
[404403074,1770108646917,-2000.0,0.00032978,120]
[404403075,1770108646926,-165.44,0.0003298,10]
[404403076,1770108646936,-827.23,0.0003298,10]
[404403077,1770108646945,-15531.27897588,0.0003299,2]
[404403078,1770108647985,-1259.30593299,0.0003299,2]
[404403288,1770109023837,530.78728917,0.00013273,2]
[404403602,1770109809761,10000.01,0.0001,2]
[404403603,1770109809784,10000.01,0.0001,2]
[404403604,1770109809807,10000.01,0.0001,2]
[404403605,1770109809828,10000.01,0.0001,2]
[404403606,1770109809849,7316.78,0.0001,2]
[404403638,1770109831662,-1500.01,0.00015342,2]
[404403640,1770109831672,-150.0,0.00017492,2]
[404403642,1770109831681,-177.0,0.00019492,2]
[404403644,1770109831691,-204.0,0.00021492,2]
[404403646,1770109831700,-231.0,0.00023492,2]
[404403648,1770109831709,-200.04,0.00025204,2]
[404403650,1770109831718,-258.0,0.00025492,2]
[404403652,1770109831727,-150.64638153,0.00026849,2]
[404403654,1770109831736,-285.0,0.00027492,2]
[404403656,1770109831745,-312.0,0.00029492,2]
[404403658,1770109831754,-300.0,0.0003149,3]
[404403660,1770109831764,-285.0,0.0003149,3]
[404403663,1770109831773,-7638.66663446,0.00031491,2]
[404403666,1770109831784,-26559.68599546,0.00031491,2]
[404403668,1770109831794,-500.0,0.00031492,2]
[404403671,1770109831803,-500.0,0.00031492,2]
[404403674,1770109831814,-500.0,0.00031492,2]
[404403676,1770109831823,-500.0,0.00031492,2]
[404403678,1770109831832,-500.0,0.00031492,2]
[404403680,1770109831842,-500.0,0.00031492,2]
[404403682,1770109831851,-500.0,0.00031492,2]
[404403683,1770109831860,-500.0,0.00031492,2]
[404403686,1770109831869,-460.21040713,0.00031492,2]
[404403689,1770109831878,-500.0,0.00031492,2]
[404403692,1770109831887,-500.0,0.00031492,2]
[404403695,1770109831897,-500.0,0.00031492,2]
[404403698,1770109831906,-500.0,0.00031492,2]
[404403701,1770109831915,-500.0,0.00031492,2]
[404403704,1770109831924,-438.37491152,0.00031492,2]
[404403706,1770109831935,-500.0,0.00031492,2]
[404403708,1770109831945,-500.0,0.00031492,2]
[404403710,1770109831955,-500.0,0.00031492,2]
[404403712,1770109831964,-500.0,0.00031492,2]
[404403714,1770109831974,-500.0,0.00031492,2]
[404403716,1770109831983,-254.46784822,0.00031492,2]
[404403717,1770109831992,-500.0,0.00031492,2]
[404403718,1770109832001,-500.0,0.00031492,2]
[404403719,1770109832010,-555.44906696,0.00031492,2]
[404403720,1770109832019,-500.0,0.00031492,2]
[404403721,1770109832028,-500.0,0.00031492,2]
[404403722,1770109832038,-500.0,0.00031492,2]
[404403723,1770109832047,-500.0,0.00031492,2]
[404403724,1770109832056,-500.0,0.00031492,2]
[404403725,1770109832065,-568.65470179,0.00031492,2]
[404403726,1770109832075,-500.0,0.00031492,2]
[404403727,1770109832179,-500.0,0.00031492,2]
[404403728,1770109832188,-500.0,0.00031492,2]
[404403729,1770109832199,-500.0,0.00031492,2]
[404403730,1770109832208,-500.0,0.00031492,2]
[404403731,1770109832218,-500.0,0.00031492,2]
[404403732,1770109832228,-339.0,0.00031492,2]
[404403733,1770109832238,-740.91124423,0.0003165,2]
[404403734,1770109832247,-444.44444444,0.00032009,2]
[404403735,1770109832257,-239.23728631,0.00032884,7]
[404403736,1770109832267,-250.52035993,0.00032884,7]
[404403737,1770109832276,-260.738,0.00032887,34]
[404403738,1770109832286,-181.22680502,0.00032899,2]
[404403739,1770109832295,-500.0,0.00032986,120]
[404403740,1770109832304,-740.91124423,0.00032989,7]
[404403741,1770109832315,-500.0,0.00032989,120]
[404403742,1770109832325,-500.0,0.00032989,120]
[404403743,1770109832334,-1180.80768476,0.0003299,2]
[404403744,1770109834231,1300.05491363,0.00015342,2]
[404403755,1770109837898,-4971.11304703,0.0003299,2]
[404403756,1770109837909,-7883.15822606,0.0003299,2]
[404403757,1770109837920,-2581.679038,0.0003299,2]
[404403784,1770109840066,-4820.96573661,0.0003299,2]
[404403980,1770109845952,-2739.63334833,0.0003299,2]
[404403981,1770109846075,-592.23081868,0.0003299,2]
[404404464,1770110915504,-7909.50321608,0.00015,2]
[404404465,1770110915805,-10000.01,0.00015,2]
[404404466,1770110915959,-10000.01,0.00015,2]
[404404467,1770110916292,3789.85,0.0001369,2]
[404404468,1770110924439,-2909.50321608,0.00015,2]
[404404469,1770110924471,-391.15356784,0.00015,2]
[404404470,1770110924625,-3789.85,0.00015,2]
[404404471,1770110924653,-1044.78221746,0.00015,2]
[404404472,1770110924688,-330.74556508,0.00015,2]
[404404476,1770110943757,500.0,0.00013699,2]
[404404477,1770110944224,500.0,0.00013273,2]
[404404478,1770110944255,1000.0,0.00013821,2]
[404404479,1770110946381,-1000.0,0.00014247,2]
[404404480,1770110946769,-299.97671363,0.00014368,2]
[404404481,1770110946791,-361.45042765,0.00014795,2]
[404404482,1770110947107,36.06244254,0.00013273,2]
[404404483,1770110947130,460.76318497,0.00013273,2]
[404404484,1770110954118,500.0,0.00013273,2]
[404404485,1770110956727,500.0,0.00013699,2]
[404404486,1770110956773,796.25821529,0.00014247,2]
[404404487,1770110959945,500.0,0.00013273,2]
[404404488,1770110959985,158.81622736,0.00013821,2]
[404404509,1770111006959,500.0,0.00013273,2]
[404404510,1770111007024,1500.0,0.00014368,2]
[404404511,1770111007075,2000.0,0.00014916,2]
[404404512,1770111007134,2621.40696884,0.00015464,2]
[404404513,1770111007196,1000.0,0.00013821,2]
[404404515,1770111012909,1000.01,0.00015808,2]
[404404516,1770111014434,488.50652582,0.00013273,2]
[404404518,1770111028471,631.93,0.00014999,2]
[404404552,1770111031849,-691.13,0.00015808,2]
[404404554,1770111031859,-300.0,0.00016999,2]
[404404556,1770111031869,-300.0,0.00016999,2]
[404404558,1770111031878,-1164.0,0.00016999,2]
[404404560,1770111031894,-631.93,0.00016999,2]
[404404562,1770111031903,-631.93,0.00016999,2]
[404404564,1770111031912,-25069.42941226,0.00017,2]
[404404566,1770111031921,-300.0,0.00017339,2]
[404404569,1770111031931,-300.0,0.00017339,2]
[404404572,1770111031940,-300.0,0.00017339,2]
[404404575,1770111031950,-300.0,0.00017339,2]
[404404578,1770111031959,-300.0,0.00017339,2]
[404404582,1770111031968,-300.0,0.00017339,2]
[404404586,1770111031977,-300.0,0.00017339,2]
[404404590,1770111031987,-300.0,0.00017339,2]
[404404594,1770111031996,-300.0,0.00017339,2]
[404404597,1770111032006,-300.0,0.00017339,2]
[404404599,1770111032015,-300.0,0.00017339,2]
[404404601,1770111032025,-300.0,0.00017339,2]
[404404603,1770111032036,-300.0,0.00017339,2]
[404404605,1770111032046,-300.0,0.00017339,2]
[404404607,1770111032055,-300.0,0.00017339,2]
[404404609,1770111032065,-150.05896945,0.00017339,2]
[404404611,1770111032076,-23651.80285551,0.0001747,2]
[404404613,1770111032085,-968.2756982,0.00017499,2]
[404404615,1770111032096,-600.0,0.00017685,2]
[404404618,1770111032107,-1000.0,0.00017925,2]
[404404619,1770111032116,-631.93,0.00017999,2]
[404404621,1770111032124,-631.93,0.00017999,2]
[404404623,1770111032138,-631.93,0.00017999,2]
[404404625,1770111032147,-631.93,0.00017999,2]
[404404627,1770111032156,-631.93,0.00017999,2]
[404404629,1770111032165,-631.93,0.00017999,2]
[404404632,1770111032174,-631.93,0.00017999,2]
[404404633,1770111032183,-157805.31527883,0.00018,2]
[404404635,1770111032193,-631.93,0.00018358,2]
[404404637,1770111032202,-181.22680501,0.00018467,2]
[404404639,1770111032212,-420.0,0.00018567,2]
[404404641,1770111032222,-720.0,0.00019453,2]
[404404643,1770111032232,-207.07,0.000197,2]
[404404646,1770111032241,-180.0,0.00020279,2]
[404404648,1770111032251,-864.0,0.00021399,10]
[404404650,1770111032260,-1042.11608552,0.000215,2]
[404404652,1770111032270,-1300.26430338,0.000215,2]
[404404657,1770111032312,631.93,0.00024899,120]
[404404663,1770111032354,631.93,0.0003005,120]
[404405579,1770111044359,-727.45580759,0.000215,2]
[404405586,1770111044416,-10862.71762061,0.000215,2]
[404405588,1770111044425,-1035.83678534,0.000225,2]
[404405590,1770111044435,-1000.0,0.00023538,10]
[404405592,1770111044444,-6648.74658031,0.0002465,2]
[404405594,1770111044456,-6734.16341969,0.0002465,2]
[404405596,1770111044465,-13211.55978031,0.000249,2]
[404405598,1770111044476,-3481.49185029,0.000249,2]
[404405600,1770111044485,-150.0,0.00025291,2]
[404405602,1770111044494,-1000.0,0.00025892,10]
[404405604,1770111044503,-244.0,0.00025892,10]
[404405606,1770111044512,-177.0,0.00027291,2]
[404405608,1770111044522,-252.88472252,0.00028038,5]
[404405610,1770111044531,-1000.0,0.00028481,30]
[404405612,1770111044540,-492.0,0.00028481,30]
[404405614,1770111044550,-3120.29052751,0.00029171,2]
[404405684,1770111063530,1004.6841927,0.00013821,2]
[404405685,1770111063583,500.0,0.00013273,2]
[404405686,1770111064738,231.28910366,0.00013699,2]
[404405687,1770111065091,500.89955537,0.00013273,2]
[404405688,1770111074856,527.49643929,0.00014999,2]
[404405689,1770111078484,341.18377264,0.00013273,2]
[404405692,1770111095750,500.0,0.00014999,2]
[404405693,1770111095778,550.0,0.00014999,2]
[404405694,1770111095804,500.0,0.00014999,2]
[404405695,1770111095831,500.0,0.00014999,2]
[404405696,1770111095919,500.0,0.00014999,2]
[404405697,1770111095947,500.0,0.00014999,2]
[404405698,1770111095974,500.0,0.00014999,2]
[404405699,1770111096003,500.0,0.00014999,2]
[404405700,1770111096076,500.0,0.00014999,2]
[404405703,1770111105852,500.0,0.00014999,2]
[404405704,1770111106111,500.0,0.00014999,2]
[404405705,1770111106141,500.0,0.00014999,2]
[404405706,1770111106168,500.0,0.00014999,2]
[404405707,1770111106196,344.45693634,0.00014999,2]
[404405708,1770111106218,238.47904515,0.00014999,2]
[404405709,1770111106245,500.0,0.00014999,2]
[404405710,1770111106288,500.0,0.00014999,2]
[404405711,1770111106317,500.0,0.00014999,2]
[404405712,1770111106346,500.0,0.00014999,2]
[404405713,1770111106377,500.0,0.00014999,2]
[404405715,1770111125363,500.0,0.00013273,2]
[404405719,1770111132409,407.2432176,0.00013273,2]
[404405720,1770111133278,500.0,0.00013699,2]
[404405809,1770111364267,500.0,0.00013699,2]
[404405811,1770111377889,-500.0,0.00016992,2]
[404405833,1770111467750,-763.32,0.00016654,2]
[404405847,1770111485017,500.0,0.00013273,2]
[404405848,1770111485086,1000.0,0.00013821,2]
[404405849,1770111485135,989.61519171,0.00014368,2]
[404405851,1770111547493,500.0,0.00013273,2]
[404405852,1770111547532,806.45681059,0.00013821,2]
[404405853,1770111553942,-582.61257785,0.00016654,2]
[404405854,1770111560282,334.34,0.00015998,2]